lending/lending_fUSD_20240417
["ID","MTS","AMOUNT","RATE_DAILY","PERIOD"]
[322809108,1713339314450,155.20591442,0.00031865,30]
[322809109,1713339320503,223.23430606,0.00031865,30]
[322809110,1713339321785,337.70383496,0.00031865,30]
[322809111,1713339332983,337.96049033,0.00031865,30]
[322809112,1713339334807,155.66606032,0.00031865,30]
[322809113,1713339341387,331.46444927,0.00031865,30]
[322809114,1713339342325,204.0,0.00031865,30]
[322809115,1713339348426,336.11955729,0.00031865,30]
[322809116,1713339350478,283.14826621,0.00031865,30]
[322809117,1713339356218,393.02,0.00031865,30]
[322809118,1713339397759,447.47103018,0.00031865,30]
[322809119,1713339403289,444.77668842,0.00031865,30]
[322809120,1713339413409,275.220198,0.00031865,30]
[322809121,1713339423541,227.26443989,0.00031865,30]
[322809122,1713339425863,318.38055844,0.00031865,30]
[322809123,1713339437786,1260.0,0.00031865,30]
[322809124,1713339442278,449.04738966,0.00031865,30]
[322809125,1713339450909,581.30520559,0.00031865,30]
[322809126,1713339461606,317.80569399,0.00031865,30]
[322809127,1713339466924,188.0,0.00031865,30]
[322809128,1713339467607,188.0,0.00031865,30]
[322809129,1713339468231,188.0,0.00031865,30]
[322809130,1713339468852,169.0,0.00031865,30]
[322809131,1713339475312,155.61572662,0.00031865,30]
[322809132,1713339497016,265.71078253,0.00031865,30]
[322809133,1713339499386,184.58441767,0.00031865,30]
[322809134,1713339526375,152.32565673,0.00031865,30]
[322809135,1713339544227,421.34055891,0.00031865,30]
[322809136,1713339551171,246.93087764,0.00031865,30]
[322809137,1713339553048,342.06592589,0.00031865,30]
[322809138,1713339692190,168.64706343,0.00031865,30]
[322809139,1713339720592,430.999999,0.00031865,120]
[322809140,1713339801962,587.38,0.00015896,2]
[322809141,1713339806066,345.0073831,0.00031865,30]
[322809142,1713339810491,153.53493838,0.00031865,120]
[322809143,1713339920479,168.45102185,0.00031865,30]
[322809144,1713339925745,175.70122231,0.00031865,30]
[322809145,1713339955686,27870.46384784,0.000138,30]
[322809146,1713340009776,608.44,0.00031865,30]
[322809147,1713340010000,608.44,0.00031865,30]
[322809148,1713340010251,608.44,0.00031865,30]
[322809149,1713340010530,608.44,0.00031865,30]
[322809150,1713340010809,608.44,0.00031865,30]
[322809151,1713340011076,608.44,0.00031865,30]
[322809152,1713340011371,608.44,0.00031865,30]
[322809153,1713340011647,608.44,0.00031865,30]
[322809154,1713340012036,608.44,0.00031865,30]
[322809155,1713340012188,608.44,0.00031865,30]
[322809156,1713340012442,608.44,0.00031865,30]
[322809157,1713340012705,608.44,0.00031865,30]
[322809158,1713340012976,608.44,0.00031865,30]
[322809159,1713340013246,608.44,0.00031865,30]
[322809160,1713340013859,608.44,0.00031865,30]
[322809161,1713340014162,608.44,0.00031865,30]
[322809162,1713340014663,608.44,0.00031865,30]
[322809163,1713340015237,608.44,0.00031865,30]
[322809164,1713340015533,608.44,0.00031865,30]
[322809165,1713340015830,608.44,0.00031865,30]
[322809166,1713340016082,608.44,0.00031865,30]
[322809167,1713340016326,608.44,0.00031865,30]
[322809168,1713340016599,608.44,0.00031865,30]
[322809169,1713340016874,608.56260921,0.00031865,30]
[322809170,1713340044265,890.09,0.00031865,30]
[322809171,1713340044549,890.09,0.00031865,30]
[322809172,1713340045181,890.09,0.00031865,30]
[322809173,1713340045592,890.09,0.00031865,30]
[322809174,1713340045919,890.09,0.00031865,30]
[322809175,1713340046166,890.09,0.00031865,30]
[322809176,1713340046465,890.09,0.00031865,30]
[322809177,1713340046732,890.09,0.00031865,30]
[322809178,1713340047012,890.09,0.00031865,30]
[322809179,1713340047676,890.09,0.00031865,30]
[322809180,1713340047939,890.09,0.00031865,30]
[322809181,1713340048190,890.09,0.00031865,30]
[322809182,1713340048473,890.09,0.00031865,30]
[322809183,1713340048755,890.09,0.00031865,30]
[322809184,1713340049276,890.09,0.00031865,30]
[322809185,1713340049432,890.09,0.00031865,30]
[322809186,1713340049590,890.09,0.00031865,30]
[322809187,1713340050079,890.09,0.00031865,30]
[322809188,1713340050140,890.09,0.00031865,30]
[322809189,1713340050419,890.09,0.00031865,30]
[322809190,1713340051044,890.09,0.00031865,30]
[322809191,1713340051323,890.09,0.00031865,30]
[322809192,1713340051585,890.09,0.00031865,30]
[322809193,1713340051848,890.30927653,0.00031865,30]
[322809194,1713340067724,188.0,0.00031865,30]
[322809195,1713340068322,188.0,0.00031865,30]
[322809196,1713340183400,627.72713703,0.00031865,30]
[322809197,1713340194015,652.43433522,0.00019999,20]
[322809218,1713340232162,-1772.95,0.00017633,2]
[322809219,1713340232173,-318.04,0.00017657,2]
[322809220,1713340232182,-450.09,0.00017661,2]
[322809221,1713340232192,-549.91,0.00017724,2]
[322809222,1713340232201,-3343.11,0.000178,2]
[322809224,1713340232212,-4482.44078379,0.000178,2]
[322809225,1713340232228,-538.35490887,0.000178,2]
[322809226,1713340232274,-4493.81222611,0.000178,2]
[322809227,1713340232286,-542.31677201,0.000178,2]
[322809228,1713340232297,-2657.2692505,0.000178,2]
[322809229,1713340232328,-523.430005,0.000178,2]
[322809230,1713340232385,-483.762033,0.000178,2]
[322809231,1713340232396,-6369.9144,0.000178,2]
[322809232,1713340232406,-648.56859254,0.000178,2]
[322809233,1713340232417,-448.074243,0.000178,2]
[322809234,1713340232428,-395.9848,0.000178,2]
[322809235,1713340232438,-559.31148391,0.000178,2]
[322809236,1713340232457,-4147.36848739,0.000178,2]
[322809237,1713340232468,-633.16573653,0.000178,2]
[322809238,1713340232480,-506.97192,0.000178,2]
[322809239,1713340232491,-284.09786747,0.000178,2]
[322809240,1713340232501,-372.88887261,0.000178,2]
[322809241,1713340232512,-1709.14612512,0.000178,2]
[322809242,1713340232522,-384.20256361,0.000178,2]
[322809263,1713340238212,-42847.80827974,0.000178,2]
[322809264,1713340238228,-4852.6012,0.000178,2]
[322809265,1713340238266,-547.9292889,0.000178,2]
[322809266,1713340238278,-32239.81327983,0.000178,2]
[322809267,1713340238321,-43300.81698007,0.000178,2]
[322809268,1713340238330,-390.4591,0.000178,2]
[322809269,1713340238340,-158.41,0.00017857,2]
[322809270,1713340238350,-1186.94284281,0.0001788,2]
[322809271,1713340238359,-1159.03733071,0.0001788,2]
[322809272,1713340238369,-204.13316928,0.000179,2]
[322809273,1713340238378,-186.94,0.0001796,2]
[322809274,1713340238387,-7268.88,0.0001796,2]
[322809275,1713340238396,-155.96,0.00017982,2]
[322809276,1713340238406,-1186.94284272,0.00018005,2]
[322809277,1713340238416,-1159.03733066,0.00018005,2]
[322809278,1713340238426,-499.99,0.00018014,2]
[322809279,1713340238436,-186.94,0.00018014,2]
[322809280,1713340238445,-186.94,0.00018068,2]
[322809281,1713340238454,-1817.52,0.000181,2]
[322809282,1713340238465,-784.6,0.000181,2]
[322809283,1713340238475,-587.38,0.0001816,2]
[322809284,1713340238484,-168.79,0.00018263,2]
[322809285,1713340238493,-1186.94284272,0.0001831,2]
[322809286,1713340238502,-1159.03733066,0.0001831,2]
[322809287,1713340238514,-827.94,0.00018356,2]
[322809288,1713340238523,-582.53,0.00018356,2]
[322809289,1713340238533,-150.0,0.00018356,2]
[322809290,1713340238543,-300.0,0.00018356,2]
[322809291,1713340238553,-325.12,0.00018356,2]
[322809292,1713340238564,-176.72,0.00018356,2]
[322809293,1713340238574,-700.1,0.00018356,2]
[322809294,1713340238583,-300.0,0.00018356,2]
[322809295,1713340238592,-521.56,0.00018356,2]
[322809297,1713340238601,-150.0,0.00018356,2]
[322809299,1713340238610,-521.56,0.00018356,2]
[322809301,1713340238619,-150.0,0.00018356,2]
[322809303,1713340238628,-521.56,0.00018356,2]
[322809305,1713340238637,-521.56,0.00018356,2]
[322809307,1713340238647,-1186.94284272,0.00018615,2]
[322809309,1713340238656,-1159.03733066,0.00018615,2]
[322809311,1713340238666,-513.0,0.000187,2]
[322809312,1713340238675,-183.85469904,0.0001871,2]
[322809313,1713340238684,-40050.5636,0.000188,2]
[322809314,1713340238692,-171.00530768,0.000188,2]
[322809316,1713340238702,-800.0,0.00018877,2]
[322809317,1713340238711,-530.0,0.00018877,2]
[322809318,1713340238721,-1497.02109259,0.00018898,2]
[322809319,1713340238734,-17524.5028964,0.000189,3]
[322809320,1713340238744,-493.0,0.000189,2]
[322809321,1713340238753,-182.05488712,0.000189,2]
[322809322,1713340238765,-171.00530768,0.000189,2]
[322809323,1713340238775,-4313.05874044,0.000189,2]
[322809324,1713340238790,-3186.94125956,0.000189,2]
[322809325,1713340238800,-546.78477453,0.000189,2]
[322809326,1713340238810,-154.63428542,0.000189,2]
[322809327,1713340238819,-2000.0,0.00018904,3]
[322809328,1713340238828,-1186.94284272,0.0001892,2]
[322809329,1713340238838,-1159.03733066,0.0001892,2]
[322809330,1713340238848,-1338.37961347,0.00018943,2]
[322809331,1713340238857,-154.21,0.0001899,2]
[322809332,1713340238866,-154.21,0.0001899,2]
[322809333,1713340238875,-278.96036837,0.0001899,2]
[322809334,1713340238884,-278.96036837,0.0001899,2]
[322809335,1713340238894,-4328.00567951,0.00018998,2]
[322809336,1713340238903,-263.09163061,0.00018998,2]
[322809337,1713340238912,-263.79418499,0.00018998,2]
[322809338,1713340238922,-155.26199831,0.00018998,2]
[322809339,1713340238931,-155.26212772,0.00018998,2]
[322809340,1713340238942,-216.5360115,0.00018998,2]
[322809341,1713340238952,-250.46218932,0.00018998,2]
[322809342,1713340239159,-155.30477558,0.00018998,2]
[322809343,1713340239170,-12593.13517448,0.00018998,2]
[322809344,1713340239181,-155.0,0.00018998,2]
[322809345,1713340239192,-4909.54926361,0.00018998,2]
[322809346,1713340239201,-14422.89089641,0.00018998,2]
[322809347,1713340239210,-271.93917814,0.00018998,2]
[322809348,1713340239220,-489.26159003,0.00018998,2]
[322809349,1713340239230,-959.61381757,0.00018998,2]
[322809350,1713340239275,-2817.21253608,0.00018998,2]
[322809351,1713340239285,-3013.60455917,0.00018998,2]
[322809352,1713340239294,-309.29582041,0.00018998,2]
[322809353,1713340239304,-228.43652488,0.00018998,2]
[322809354,1713340239314,-12.92352407,0.00018998,2]
[322809355,1713340239327,-142.07647593,0.00018998,2]
[322809356,1713340239336,-345.93853847,0.00018998,2]
[322809357,1713340239345,-318.31440525,0.00018998,2]
[322809358,1713340239356,-222.94058035,0.00018998,7]
[322809359,1713340239367,-267.4029094,0.00018998,7]
[322809360,1713340239377,-225.165579,0.00018998,2]
[322809361,1713340239388,-342.77116761,0.00018998,2]
[322809362,1713340239399,-173.38034399,0.00018999,2]
[322809364,1713340240892,-147.39309714,0.00018999,2]
[322809365,1713340240902,-852.61353286,0.00018999,2]
[322809366,1713340240917,-995.94,0.00018999,2]
[322809368,1713340240928,-151.44646714,0.00018999,2]
[322809370,1713340240937,-2000.0,0.00018999,2]
[322809371,1713340240947,-2000.0,0.00018999,2]
[322809372,1713340240956,-2000.0,0.00018999,2]
[322809373,1713340240965,-1626.3032991,0.00018999,2]
[322809393,1713340243526,-254.832648,0.00018999,2]
[322809394,1713340243538,-118.8640529,0.00018999,2]
[322809395,1713340243547,-1821.97960366,0.00018999,2]
[322809396,1713340243685,-178.02039634,0.00018999,2]
[322809397,1713340243695,-2000.0,0.00018999,2]
[322809398,1713340243704,-2000.0,0.00018999,2]
[322809399,1713340243714,-2000.0,0.00018999,2]
[322809400,1713340243723,-2000.0,0.00018999,2]
[322809401,1713340243733,-2000.0,0.00018999,2]
[322809402,1713340243742,-2000.0,0.00018999,2]
[322809403,1713340243752,-1659.70020105,0.00018999,2]
[322809404,1713340243765,-340.29979895,0.00018999,2]
[322809405,1713340243776,-563.36785259,0.00018999,2]
[322809416,1713340246614,-934.36516636,0.00018999,2]
[322809419,1713340273778,356.52574123,0.00031865,30]
[322809420,1713340288045,228.5629044,0.00031865,30]
[322809421,1713340294412,164.34951822,0.00031865,120]
[322809422,1713340302175,404.72477607,0.00031865,30]
[322809423,1713340303894,477.30933405,0.00031865,120]
[322809424,1713340304579,19843.94589288,0.00031865,30]
[322809425,1713340305968,363.83272355,0.00031865,30]
[322809426,1713340326778,224.69154433,0.00031865,120]
[322809427,1713340330741,384.26488632,0.00031865,60]
[322809429,1713340334298,194.97673066,0.00031865,30]
[322809431,1713340347843,174.17004713,0.00031865,120]
[322809432,1713340349895,328.9304695,0.00031865,30]
[322809435,1713340382688,159.04715933,0.00031865,120]
[322809436,1713340398634,645.82304182,0.00031865,30]
[322809437,1713340400726,954.47,0.00031865,30]
[322809438,1713340401065,954.47,0.00031865,30]
[322809439,1713340401361,954.47,0.00031865,30]
[322809440,1713340401627,954.47,0.00031865,30]
[322809441,1713340401895,954.47,0.00031865,30]
[322809442,1713340402483,954.47,0.00031865,30]
[322809443,1713340402776,954.47,0.00031865,30]
[322809444,1713340403056,954.47,0.00031865,30]
[322809445,1713340403334,954.47,0.00031865,30]
[322809446,1713340403577,954.47,0.00031865,30]
[322809447,1713340403857,954.47,0.00031865,30]
[322809448,1713340404096,954.47,0.00031865,30]
[322809449,1713340404364,954.47,0.00031865,30]
[322809450,1713340404639,954.47,0.00031865,30]
[322809451,1713340404916,954.47,0.00031865,30]
[322809452,1713340405170,954.47,0.00031865,30]
[322809453,1713340405423,954.47,0.00031865,30]
[322809454,1713340405696,954.47,0.00031865,30]
[322809455,1713340405959,954.47,0.00031865,30]
[322809456,1713340406210,954.47,0.00031865,30]
[322809457,1713340406460,954.47,0.00031865,30]
[322809458,1713340406715,954.47,0.00031865,30]
[322809459,1713340407024,954.47,0.00031865,30]
[322809460,1713340407241,954.68212702,0.00031865,30]
[322809461,1713340424660,344.08984021,0.00031865,120]
[322809462,1713340425737,299.67393213,0.00031865,30]
[322809463,1713340426080,214.37357328,0.00031865,120]
[322809464,1713340427254,168.0602422,0.00031865,120]
[322809465,1713340427455,184.71627084,0.00031865,120]
[322809466,1713340429257,355.98927348,0.00031865,30]
[322809467,1713340430583,255.15367252,0.00031865,30]
[322809469,1713340431682,544.31812935,0.00031865,120]
[322809470,1713340437870,433.69036624,0.00031865,30]
[322809471,1713340438368,252.85832749,0.00031865,120]
[322809472,1713340468594,190.6496663,0.00031865,30]
[322809473,1713340470310,276.31668238,0.00031865,120]
[322809474,1713340470579,359.09178614,0.00031865,30]
[322809475,1713340471783,179.56651719,0.00031865,120]
[322809476,1713340472219,454.90775235,0.00031865,120]
[322809477,1713340472426,193.69338278,0.00031865,120]
[322809478,1713340472457,683.54967928,0.00031865,120]
[322809479,1713340472610,249.7131893,0.00031865,30]
[322809480,1713340472807,224.27053761,0.00031865,120]
[322809481,1713340473032,331.50073109,0.00031865,120]
[322809482,1713340473522,414.00944701,0.00031865,120]
[322809484,1713340477387,297.48860674,0.00031865,120]
[322809485,1713340478147,3019.81642077,0.0002322,30]
[322809486,1713340561192,500.0,0.00031858,30]
[322809487,1713340561527,500.0,0.00031858,30]
[322809488,1713340561878,500.0,0.00031858,30]
[322809489,1713340562147,500.0,0.00031858,30]
[322809490,1713340667855,188.0,0.00031858,30]
[322809493,1713340868550,849.86,0.00031859,30]
[322809494,1713340868817,849.86,0.00031859,30]
[322809495,1713340869124,849.86,0.00031859,30]
[322809496,1713340869397,849.86,0.00031859,30]
[322809497,1713340869663,849.86,0.00031859,30]
[322809498,1713340869918,849.86,0.00031859,30]
[322809499,1713340870200,849.86,0.00031859,30]
[322809500,1713340870473,849.86,0.00031859,30]
[322809501,1713340870744,849.86,0.00031859,30]
[322809502,1713340871016,849.86,0.00031859,30]
[322809503,1713340871326,849.86,0.00031859,30]
[322809504,1713340871647,849.86,0.00031859,30]
[322809505,1713340872246,849.86,0.00031859,30]
[322809506,1713340872505,849.86,0.00031859,30]
[322809507,1713340872779,849.86,0.00031859,30]
[322809508,1713340873181,849.86,0.00031859,30]
[322809509,1713340873444,849.86,0.00031859,30]
[322809510,1713340873754,849.86,0.00031859,30]
[322809511,1713340874068,849.86,0.00031859,30]
[322809512,1713340874345,849.86,0.00031859,30]
[322809513,1713340874609,849.86,0.00031859,30]
[322809514,1713340876816,849.86,0.00031859,30]
[322809515,1713340877336,849.86,0.00031859,30]
[322809516,1713340877601,850.09512721,0.00031859,30]
[322809517,1713340973739,528.64,0.00015953,2]
[322809520,1713341117167,246.96470174,0.00031859,30]
[322809522,1713341276065,188.0,0.00031859,30]
[322809552,1713341432643,-837.67972745,0.00016126,2]
[322809553,1713341432652,-316.0,0.00016127,2]
[322809554,1713341432662,-203.23456637,0.00016438,2]
[322809555,1713341432671,-455.6341,0.00017781,2]
[322809556,1713341432680,-200.0,0.00017787,2]
[322809557,1713341432689,-1969.93,0.00017824,2]
[322809558,1713341432698,-150.0,0.00017838,2]
[322809560,1713341432707,-500.0,0.00017856,2]
[322809562,1713341432717,-2683.16057793,0.00017881,2]
[322809565,1713341432801,-676.29393496,0.00017881,2]
[322809566,1713341432910,-1003.01331998,0.00017881,2]
[322809581,1713341438718,-500.6964493,0.00017881,2]
[322809590,1713341440618,-717.20571783,0.00017881,2]
[322809591,1713341440628,-159.02,0.0001791,2]
[322809592,1713341440642,-150.0,0.00017918,2]
[322809593,1713341440651,-493.72440631,0.00017919,2]
[322809594,1713341440845,-506.27559369,0.00017919,2]
[322809595,1713341440856,-1181.63,0.00017978,2]
[322809596,1713341440866,-739.17708963,0.00017999,2]
[322809639,1713341443597,-5260.92583464,0.00017999,2]
[322809641,1713341443607,-528.64,0.00018217,2]
[322809643,1713341443616,-278.6748,0.00018515,2]
[322809645,1713341443626,-5282.97,0.00018785,2]
[322809647,1713341443636,-1735.674,0.00018785,2]
[322809649,1713341443645,-5724.0,0.00018785,2]
[322809651,1713341443655,-12977.24165612,0.00018785,2]
[322809653,1713341444578,-7019.08334388,0.00018785,2]
[322809654,1713341444587,-892.0,0.000188,2]
[322809655,1713341444597,-1309.89345599,0.000188,2]
[322809656,1713341444607,-4615.39309519,0.000189,2]
[322809657,1713341444616,-2292.79904742,0.000189,3]
[322809658,1713341444653,-842.56313245,0.000189,3]
[322809671,1713341446557,-3523.33871929,0.000189,3]
[322809672,1713341446614,-2659.2951,0.000189,3]
[322809673,1713341446671,-4230.2043946,0.000189,3]
[322809674,1713341446735,-2371.73426144,0.000189,3]
[322809675,1713341446792,-2120.18465599,0.000189,3]
[322809676,1713341470677,500.0,0.00031859,30]
[322809677,1713341470941,500.0,0.00031859,30]
[322809678,1713341471219,155.0,0.00031859,30]
[322809685,1713341526021,-12000.0,0.00020463,7]
[322809686,1713341526049,-245.39,0.00020515,7]
[322809687,1713341526078,-150.5,0.00020525,7]
[322809688,1713341526107,-150.5,0.00020535,7]
[322809689,1713341526152,-4459.71258,0.00021918,7]
[322809690,1713341526195,-569.07857878,0.000225,15]
[322809691,1713341526228,-5000.0,0.00023963,7]
[322809692,1713341526259,-1200.0,0.00024,25]
[322809693,1713341526287,-112380.7628138,0.00024,7]
[322809694,1713341526316,-257.00164552,0.0002429,7]
[322809695,1713341526344,-1522.29,0.00024329,15]
[322809696,1713341526374,-1200.0,0.00025,26]
[322809697,1713341526401,-85383.12675929,0.00025,5]
[322809698,1713341526435,-210.20198296,0.00026,5]
[322809699,1713341526465,-5000.0,0.00026,10]
[322809700,1713341526493,-1000.0,0.00026,5]
[322809701,1713341526520,-1200.0,0.00026,27]
[322809702,1713341526554,-153.81687116,0.00026989,10]
[322809703,1713341526580,-465.0,0.00027,5]
[322809704,1713341526606,-788.54,0.00027,10]
[322809705,1713341526631,-10000.00600533,0.00027,10]
[322809706,1713341526657,-1000.0,0.00027,5]
[322809707,1713341526682,-1200.0,0.00027,28]
[322809708,1713341526709,-10000.0,0.00027,5]
[322809709,1713341526735,-4066.50387962,0.00027,5]
[322809710,1713341526996,-1522.29,0.00027068,15]
[322809711,1713341527027,-151.0,0.00027397,7]
[322809712,1713341527053,-151.0,0.00027397,7]
[322809713,1713341527079,-151.0,0.00027397,7]
[322809714,1713341527105,-151.0,0.00027397,7]
[322809715,1713341527130,-151.0,0.00027397,7]
[322809716,1713341527159,-151.0,0.00027397,7]
[322809717,1713341527188,-151.0,0.00027397,7]
[322809718,1713341527218,-151.0,0.00027397,7]
[322809719,1713341527246,-151.0,0.00027397,7]
[322809720,1713341527273,-151.0,0.00027397,7]
[322809721,1713341527302,-151.0,0.00027397,7]
[322809722,1713341527328,-151.0,0.00027397,7]
[322809723,1713341527353,-151.0,0.00027397,7]
[322809724,1713341527379,-151.0,0.00027397,7]
[322809725,1713341527405,-196.40539,0.00027397,7]
[322809726,1713341527431,-151.0,0.00027397,7]
[322809727,1713341527460,-151.0,0.00027397,7]
[322809728,1713341527486,-151.0,0.00027397,7]
[322809729,1713341527512,-151.0,0.00027397,7]
[322809730,1713341527538,-151.0,0.00027397,7]
[322809731,1713341527563,-151.0,0.00027397,7]
[322809732,1713341527587,-266.262341,0.00027397,7]
[322809733,1713341527612,-300.0,0.00027397,10]
[322809734,1713341527638,-300.0,0.00027397,10]
[322809735,1713341527662,-300.0,0.00027397,10]
[322809736,1713341527686,-300.0,0.00027397,10]
[322809737,1713341527713,-300.0,0.00027397,10]
[322809738,1713341527737,-300.0,0.00027397,10]
[322809739,1713341527762,-300.0,0.00027397,10]
[322809740,1713341527787,-300.0,0.00027397,10]
[322809741,1713341527812,-300.0,0.00027397,10]
[322809742,1713341527836,-300.0,0.00027397,10]
[322809743,1713341527860,-300.0,0.00027397,10]
[322809744,1713341527885,-300.0,0.00027397,10]
[322809745,1713341527910,-300.0,0.00027397,10]
[322809746,1713341527935,-300.0,0.00027397,10]
[322809747,1713341527961,-300.0,0.00027397,10]
[322809748,1713341527987,-300.0,0.00027397,10]
[322809749,1713341528012,-300.0,0.00027397,10]
[322809750,1713341528037,-300.0,0.00027397,10]
[322809751,1713341528061,-300.0,0.00027397,10]
[322809752,1713341528085,-300.0,0.00027397,10]
[322809753,1713341528108,-300.0,0.00027397,10]
[322809754,1713341528131,-300.0,0.00027397,10]
[322809755,1713341528157,-300.0,0.00027397,10]
[322809756,1713341528180,-300.0,0.00027397,10]
[322809757,1713341528205,-300.0,0.00027397,10]
[322809758,1713341528228,-300.0,0.00027397,10]
[322809759,1713341528253,-300.0,0.00027397,10]
[322809760,1713341528276,-300.0,0.00027397,10]
[322809761,1713341528299,-300.0,0.00027397,10]
[322809762,1713341528323,-300.0,0.00027397,10]
[322809763,1713341528346,-300.0,0.00027397,10]
[322809764,1713341528369,-300.0,0.00027397,10]
[322809765,1713341528392,-300.0,0.00027397,10]
[322809766,1713341528416,-300.0,0.00027397,10]
[322809767,1713341528439,-300.0,0.00027397,10]
[322809768,1713341528463,-300.0,0.00027397,10]
[322809769,1713341528486,-300.0,0.00027397,10]
[322809770,1713341528510,-300.0,0.00027397,10]
[322809771,1713341528533,-300.0,0.00027397,10]
[322809772,1713341528555,-300.0,0.00027397,10]
[322809773,1713341528578,-300.0,0.00027397,10]
[322809774,1713341528601,-301.43478712,0.00027397,10]
[322809775,1713341528623,-558.16024187,0.00027397,10]
[322809776,1713341528647,-4000.0,0.00027463,7]
[322809777,1713341528670,-9268.68122093,0.000275,12]
[322809778,1713341528695,-415.21955628,0.000279,5]
[322809779,1713341528723,-5081.0,0.00028,5]
[322809780,1713341528746,-200.0,0.00028,7]
[322809781,1713341528769,-279.11091209,0.00028,20]
[322809782,1713341528793,-17659.0,0.00028,5]
[322809783,1713341528817,-1200.0,0.00028,29]
[322809784,1713341528841,-1033.55866309,0.00028,7]
[322809785,1713341528863,-2000.0,0.00028,7]
[322809786,1713341528886,-2000.0,0.00028,7]
[322809787,1713341528909,-2000.0,0.00028,7]
[322809788,1713341528932,-2000.0,0.00028,7]
[322809789,1713341528957,-2000.0,0.00028,7]
[322809790,1713341528980,-1505.235545,0.00028,7]
[322809791,1713341529005,-152.0,0.000282,5]
[322809792,1713341529030,-20539.184569,0.0002831,5]
[322809793,1713341529057,-440.37569055,0.00028356,30]
[322809794,1713341529086,-152.0,0.0002885,6]
[322809795,1713341529109,-82204.14376584,0.00028942,5]
[322809796,1713341529133,-14923.0,0.00029,10]
[322809797,1713341529162,-152.0,0.000295,7]
[322809798,1713341529188,-1522.29,0.00029808,15]
[322809799,1713341529219,-50000.0,0.0003,10]
[322809800,1713341529243,-1509.75700411,0.0003,5]
[322809801,1713341529268,-5770.02571114,0.0003,7]
[322809802,1713341529290,-400.68,0.0003,10]
[322809803,1713341529314,-38157.63994284,0.0003,10]
[322809804,1713341529337,-250.0,0.0003,20]
[322809805,1713341529361,-10000.0,0.0003,20]
[322809806,1713341529385,-20055.0,0.0003,14]
[322809807,1713341529408,-5210.0000217,0.0003,12]
[322809808,1713341529431,-10000.0,0.0003,12]
[322809809,1713341529456,-10153.11352098,0.0003,30]
[322809810,1713341533317,-28775.21319622,0.0003,30]
[322809811,1713341533346,-1060.02005083,0.00030017,7]
[322809812,1713341533371,-153.89093044,0.00030023,7]
[322809813,1713341533395,-156.52437583,0.00030023,7]
[322809814,1713341533420,-150.86509823,0.00030026,7]
[322809815,1713341533445,-152.22934859,0.00030034,7]
[322809816,1713341533470,-157.50685455,0.00030036,7]
[322809817,1713341533494,-155.74547759,0.00030039,7]
[322809818,1713341533518,-150.86509823,0.00030047,7]
[322809819,1713341533546,-623.21066195,0.000301,7]
[322809820,1713341533571,-392.51108779,0.00030112,7]
[322809821,1713341533596,-166.67573769,0.00030116,7]
[322809822,1713341533621,-240.79294607,0.00030116,7]
[322809823,1713341533647,-164.8654549,0.00030123,7]
[322809824,1713341533675,-154.82948539,0.00030133,7]